Cogmind - Beta 14 @@@ ROGUE MODE // 2024.10.11 @ 02:03:36 Player: puppuppit Result: Destroyed by B-75 Beast with Heavy Machine Gun Performance ------------- Evolutions (4) 2000 Regions Visited (18) 3600 Robots Destroyed (590) 2950 Value Destroyed (16473) 16473 Prototype IDs (62) 1240 Alien Tech Used (0) 0 Bonus (8396) 8396 TOTAL SCORE: 34659 Bonus ------- Triggered High Security 500 High Alert Combat Kills 6655 Follower Combat Kills 1001 Entered Garrisons 200 Aligned with FarCom 300 Met Imprinter 300 Acquired ECA 300 Friendly Fire -860 Cogmind --------- Core Integrity 0/850 Matter 300/300 Energy 21/100 System Corruption 3% Temperature Cool (0) Movement Hovering (66) Location -6/Extension Parts ------- > --- POWER (1) -------- (None) > --- PROPULSION (4) --- Combat Airjet Gravmag Array > --- UTILITY (6) ------ Medium Storage Unit Advanced Targeting Computer Core Analyzer Improved Light Armor Plating Hacking Suite > --- WEAPON (4) ------- (None) > --- INVENTORY (10) --- Improved Gravmag System Improved Trap Scanner Encrypted Comm Array Trap Reconfigurator Long-range Missile Launcher CR-A16's Pointy Stick PL-3XN's Ring of Power Peak State ------------ > --- POWER ------------ Micro Fission Core > --- PROPULSION ------- Improved Gravmag System Combat Airjet Gravmag Array > --- UTILITY ---------- Advanced Heat Sink Medium Storage Unit 0b10 Decoder Chip [Looter] Core Analyzer Makeshift Hacking Suite Trap Reconfigurator > --- WEAPON ----------- Hypervelocity Gauss Rifle Hypervelocity Gauss Rifle Hypervelocity Gauss Rifle Hypervelocity Gauss Rifle > --- INVENTORY -------- Improved Gravmag System Improved Gravmag System Improved Trap Scanner Encrypted Comm Array Recoil Stabilizer Antimatter Cannon Antimatter Cannon Antimatter Cannon Long-range Missile Launcher CR-A16's Pointy Stick [Rating: 79] Favorites ----------- Power Micro Fission Core Engine Light Ion Engine Power Core Micro Fission Core Propulsion Gravmag System Leg Makeshift Leg Wheel Wheel Hover Unit Gravmag System Flight Unit Flight Unit Utility Small Storage Unit Device Advanced Heat Sink Storage Small Storage Unit Processor Core Analyzer Hackware Makeshift Hacking Suite Protection Propulsion Shielding Weapon Improved Assault Rifle Energy Gun Field Laser Ballistic Gun Improved Assault Rifle Ballistic Cannon Antimatter Cannon Launcher Rocket Array Special Weapon Molecular Deconstructor Slashing Weapon Blade Saw Piercing Weapon CR-A16's Pointy Stick Build | -11 -10 -10 -9 -9 -9 -8 -8 -8 -8 -7 -7 -7 -7 -7 -7 -6 -6 -6 ------- Run | Yrd Mat Min Mat Min Exi Min Mat Gar Mat Fac Was Fac Low Low Zio Pro Fac Ext Slots Evolved 8 | . . . 2 . . . 2 . . 2 . . . . . . 2 . Power . | . . . . . . . . . . . . . . . . . . . Propulsion 2 | . . . 1 . . . 1 . . . . . . . . . . . Utility 4 | . . . . . . . . . . 2 . . . . . . 2 . Weapon 2 | . . . 1 . . . 1 . . . . . . . . . . . Parts Attached 516 | 9 7 6 32 4 2 7 5 41 39 21 2 67 9 13 10 6 218 18 Power 29 | 1 1 2 2 2 . . 1 6 1 . . 1 . . . . 10 2 Engine 15 | 1 1 2 2 2 . . 1 2 . . . 1 . . . . 1 2 Core 14 | . . . . . . . . 4 1 . . . . . . . 9 . Reactor . | . . . . . . . . . . . . . . . . . . . Propulsion 137 | 4 2 3 7 . 1 1 2 13 11 9 . 26 1 1 2 3 48 3 Treads . | . . . . . . . . . . . . . . . . . . . Leg 5 | . . . . . . . . . . . . . . 1 1 1 2 . Wheel 38 | 4 2 3 . . . . . . . . . 12 . . . . 17 . Hover 78 | . . . 7 . 1 1 2 5 11 9 . 14 . . . . 25 3 Flight 16 | . . . . . . . . 8 . . . . 1 . 1 2 4 . Utility 169 | 2 2 . 4 . . . 1 5 12 8 . 17 2 5 2 . 103 6 Device 114 | 1 . . . . . . . 2 7 3 . 11 2 2 . . 84 2 Storage 12 | 1 1 . 2 . . . . . 2 . . 1 . 1 . . 3 1 Processor 22 | . . . 1 . . . . 1 . 4 . 1 . 2 1 . 12 . Hackware 7 | . . . . . . . 1 . . 1 . . . . 1 . 3 1 Protection 14 | . 1 . 1 . . . . 2 3 . . 4 . . . . 1 2 Artifact . | . . . . . . . . . . . . . . . . . . . Weapon 181 | 2 2 1 19 2 1 6 1 17 15 4 2 23 6 7 6 3 57 7 Energy Gun 9 | . . . . . . . . . 4 . . . . . . . 5 . Energy Cannon . | . . . . . . . . . . . . . . . . . . . Ballistic Gun 100 | 2 1 1 15 1 1 3 1 9 10 3 1 15 4 3 1 . 26 3 Ballistic Cannon 19 | . . . . . . . . 2 1 . . . . . . . 15 1 Launcher 42 | . 1 . 4 1 . 3 . 5 . 1 1 8 2 2 4 2 6 2 Special Weapon 7 | . . . . . . . . . . . . . . 2 1 . 4 . Impact Weapon . | . . . . . . . . . . . . . . . . . . . Slashing Weapon 1 | . . . . . . . . 1 . . . . . . . . . . Piercing Weapon 3 | . . . . . . . . . . . . . . . . 1 1 1 Special Melee Weapon . | . . . . . . . . . . . . . . . . . . . Unidentified Prototypes 6 | . . . . . . . . . 1 . . . . 1 1 . 3 . Parts Lost 86 | . . . 1 . . . 1 6 13 . . 22 2 5 . 5 16 15 Power 6 | . . . 1 . . . . . . . . 2 . . . . 1 2 Propulsion 33 | . . . . . . . 1 3 4 . . 10 1 2 . 4 6 2 Utility 15 | . . . . . . . . 1 2 . . 3 1 2 . . 3 3 Weapon 32 | . . . . . . . . 2 7 . . 7 . 1 . 1 6 8 Highest Loss Streak 6 | . . . 1 . . . 1 2 6 . . 6 2 3 . 3 5 6 To Critical Strikes . | . . . . . . . . . . . . . . . . . . . Average Slot Usage (%) 87 | . 100 100 99 100 100 100 100 97 97 99 99 94 68 37 57 81 91 75 Engine 2 | . 14 14 10 11 11 11 9 1 . . . 2 . . . . . 4 Core 3 | . . . . . . . . 7 9 7 7 4 . . . . 5 . Leg 2 | . . . . . . . . . . . . . . 2 9 10 2 . Wheel 3 | . 28 28 . . . . . . . . . 2 . . . . 4 . Hover 15 | . . . 32 33 33 33 36 13 35 29 30 24 10 3 . . 14 18 Flight 2 | . . . . . . . . 21 . . . . . . 2 8 . . Device 5 | . . . . . . . . 2 8 11 . 8 12 7 2 . 9 5 Storage 7 | . 14 14 10 11 11 11 9 9 9 7 7 7 7 6 7 7 6 6 Processor 9 | . . . 5 . . . . . . 9 15 10 7 8 14 15 13 20 Hackware 3 | . . . . . . . . 2 . . 7 . . . 4 7 8 . Protection 2 | . 13 14 5 11 11 11 9 2 . . . 1 . . . . . 2 Ballistic Gun 21 | . 28 28 32 33 33 32 36 34 32 29 26 28 27 5 6 7 16 11 Launcher 2 | . . . . . . . . . . . 2 . . . 5 16 1 1 Peak Build Rating 79 | 9 9 10 16 16 17 19 26 46 51 63 57 60 39 33 44 46 79 70 Average Rating 40 | 6 7 9 14 15 16 18 23 28 42 58 56 48 33 20 28 44 62 55 On Entrance 29 | . 9 8 10 16 16 17 19 26 44 49 57 57 22 29 19 44 46 70 Naked Turns . | . . . . . . . . . . . . . . . . . . . Heaviest Build 43 | 13 18 19 18 18 18 19 23 33 27 28 29 29 24 13 30 30 43 43 Greatest Support 58 | 32 20 20 18 18 18 20 26 36 38 40 36 52 18 10 30 40 58 42 Greatest Overweight (x) 4 | . . . 2 . . 1 . 4 . . . 2 2 2 1 1 3 1 Average Overweight (x) . | . . . . . . . . . . . . . 1 . . . . . Largest Inventory Capacity 10 | 8 10 10 10 8 8 8 8 8 8 8 8 8 8 8 8 8 10 10 Average Capacity 8 | 7 8 10 8 8 8 8 8 8 8 8 8 8 8 7 8 8 9 10 Most Carried 10 | 3 10 10 10 8 8 8 7 8 8 8 8 8 8 8 8 8 10 10 Average Carried 8 | 1 8 9 7 8 7 7 6 7 7 7 7 7 7 7 7 7 9 8 Final Capacity 10 | 8 10 10 8 8 8 8 8 8 8 8 8 8 8 8 8 8 10 10 Final Carried 10 | 2 10 10 8 8 8 8 7 8 8 8 8 8 8 7 8 8 10 7 Class Distribution -------------------- 23% | Gunner 19% | Mutant 15% | Skirmisher 11% | Scavenger-Skirmisher 10% | Derelict-Gunner 5% | Tank 4% | Scavenger-Gunner Dominant Class ---------------- Mutant | -10/Materials Mutant | -10/Mines Gunner | -9/Materials Tank | -9/Mines Tank | -9/Exiles Skirmisher | -8/Mines Skirmisher | -8/Materials Scavenger-Skirmisher | -8/Garrison Skirmisher | -8/Materials Skirmisher | -7/Factory Gunner | -7/Waste Gunner | -7/Factory Gunner | -7/Lower Caves Mutant | -7/Lower Caves Mutant | -7/Zion Derelict-Gunner | -6/Proximity Caves Gunner | -6/Factory Mutant | -6/Extension Resources | -11 -10 -10 -9 -9 -9 -8 -8 -8 -8 -7 -7 -7 -7 -7 -7 -6 -6 -6 ----------- Run | Yrd Mat Min Mat Min Exi Min Mat Gar Mat Fac Was Fac Low Low Zio Pro Fac Ext Matter Collected 20320 | 298 887 550 1280 494 20 482 . 892 2585 186 852 3391 324 633 183 165 5879 1219 Remotely 175 | . . . . . . . . . . . . . . 112 63 . . . Salvage Created 25975 | 200 855 878 1832 864 . 1006 113 678 3631 215 1161 5065 235 247 . 210 6751 2034 Parts 1302 | 15 63 45 97 55 . 51 8 56 189 9 3 286 9 9 . 13 314 80 Haulers Intercepted 22 | . 2 . 5 . . . . . 6 . . 2 . . . . 7 . Recyclers Shooed 31 | 1 . 6 3 4 . 1 . . . . . 2 . . . . 12 2 Parts Field Recycled . | . . . . . . . . . . . . . . . . . . . Retrieved Matter . | . . . . . . . . . . . . . . . . . . . Parts Self-Destructed 20 | . . . . . . . . . . . . . 8 6 . 6 . . Prevented . | . . . . . . . . . . . . . . . . . . . Kills | -11 -10 -10 -9 -9 -9 -8 -8 -8 -8 -7 -7 -7 -7 -7 -7 -6 -6 -6 ------- Run | Yrd Mat Min Mat Min Exi Min Mat Gar Mat Fac Was Fac Low Low Zio Pro Fac Ext Combat Hostiles Destroyed 321 | . 16 1 23 10 . 9 2 25 54 5 6 63 5 5 . 8 61 28 Melee 1 | . . . . . . . . . . . . . . . . . . 1 Guns 221 | . 15 1 17 7 . 2 2 17 54 2 3 43 3 1 . . 36 18 Cannons 15 | . . . . . . . . . . . . . . . . . 10 5 AOE 79 | . 1 . 6 3 . 7 . 8 . 3 3 20 2 2 . 8 12 4 Classes Destroyed 24 | 2 6 1 4 . . . . 2 1 1 1 . 1 . . . 3 2 Worker 75 | . 6 7 5 8 . 6 . . 14 . . 17 . . . . 12 . Builder 39 | . . 2 3 2 . 3 . . 5 . . 12 . . . . 10 2 Tunneler 30 | 5 1 4 . 6 . 6 . . 1 . . 5 . . . . 2 . Hauler 22 | . 2 . 5 . . . . . 6 . . 2 . . . . 7 . Recycler 77 | 1 2 8 6 5 . 7 . . 7 1 . 19 . . . . 18 3 Carrier 1 | . . . . . . . . . . . . . . . . . 1 . Minesweeper 1 | . . . . . . . . . . . . . 1 . . . . . Mechanic 7 | . . . 2 . . . . . . . . 3 . . . . 1 1 Operator 8 | . 1 . 1 . . . . . 3 . . 2 . . . . 1 . Watcher 21 | . 2 . 2 . . . . . 5 1 . 4 . . . . 6 1 Swarmer 57 | . 9 1 . 10 . 4 . 11 7 4 . 3 . . . 4 4 . Cutter 7 | . . . . . . . . 3 . . . 4 . . . . . . Saboteur 1 | . . . . . . . . . . . . . . . . . . 1 Grunt 149 | . 7 . 16 . . 5 . 6 33 . . 27 5 3 . . 29 18 Brawler 12 | . . . 1 . . . . . 1 . . 7 . . . . 1 2 Duelist 7 | . . . 1 . . . . . 2 . . 1 . 1 . . . 2 Protector 7 | . . . . . . . . . 3 . . 2 . . . . 1 1 Sentry 32 | . . . 5 . . . 2 3 7 . . 5 . 1 . . 7 2 Hunter 21 | . . . . . . . . 2 1 . . 7 . . . 2 9 . Programmer 18 | . . . . . . . . . . 1 . 7 . . . 2 8 . Heavy 3 | . . . . . . . . . . . . . . . . . 3 . Behemoth 1 | . . . . . . . . . . . . . . . . . . 1 Compactor 6 | . . . . . . . . . . . 6 . . . . . . . Packrat 1 | . . . . . . . . . . . . . . 1 . . . . Surgeon 1 | . . . . . . . . . . . . . . . . . 1 . Savage 1 | . . . . . . . . . . . . . . . . . . 1 Butcher 2 | . . . . . . . . . . . . . . . . . 2 . Fireman 1 | . . . . . . . . . . . . . . . . . 1 . Best Kill Streak 24 | 6 6 4 24 4 . 13 1 9 11 4 3 16 4 3 . 4 8 10 Combat Bots Only 13 | . 4 1 4 4 . 4 1 9 9 4 3 13 4 3 . 4 4 9 Max Kills in Single Turn 7 | 1 2 1 3 2 . 4 1 4 3 3 1 7 1 2 . 4 5 3 Gunslinging 1 | . . . . . . . . 1 1 . . . . . . . 1 . Exploded 4 | . 1 . 2 2 . 4 . 3 . 3 1 4 1 1 . 4 3 2 Melee 1 | . . . . . . . . . . . . . . . . . . 1 Uniques/NPCs Destroyed . | . . . . . . . . . . . . . . . . . . . Combat | -11 -10 -10 -9 -9 -9 -8 -8 -8 -8 -7 -7 -7 -7 -7 -7 -6 -6 -6 -------- Run | Yrd Mat Min Mat Min Exi Min Mat Gar Mat Fac Was Fac Low Low Zio Pro Fac Ext Hostile Shots Fired 1441 | . 35 16 47 24 . 15 12 60 181 21 . 352 26 63 . 21 270 298 Missed 555 | . 15 3 20 4 . 7 4 22 59 7 . 150 7 24 . 2 105 126 Damage Taken 12988 | . 187 160 453 160 . 114 115 561 1827 205 . 2890 287 390 . 429 3145 2065 Core 2183 | . 20 57 141 24 . 14 16 67 385 39 . 387 23 90 . 58 488 374 Absorbed by Shields 11 | . . . . . . . . . . . . . . . . . . 11 Redirected to Shielding 135 | . 15 19 4 6 . 4 17 . 6 . . 64 . . . . . . Regen/Repaired (Parts) 939 | . . . . . . . . . . 59 . 402 . . . . 390 88 Core Remaining (%) 50 | 100 . 69 . . . 55 . . 14 . . . . . . 14 . . Volleys Fired 1197 | 12 86 59 90 58 . 43 6 70 163 9 30 189 15 17 6 8 243 93 Largest 4 | 2 2 2 3 3 . 3 4 4 4 4 4 4 4 2 1 3 4 4 Hottest 157 | 40 50 45 76 69 . 79 92 102 134 123 123 112 113 62 . 112 157 132 Shots Fired 3447 | 24 172 118 270 146 . 127 24 158 600 35 73 682 46 24 6 13 731 198 Gun 3159 | 24 171 118 266 144 . 122 24 143 597 33 59 661 43 16 . 7 558 173 Cannon 179 | . . . . . . . . 9 3 . . . . . . . 147 20 Launcher 87 | . 1 . 4 2 . 5 . 6 . 2 14 21 3 6 . 6 12 5 Special 22 | . . . . . . . . . . . . . . 2 6 . 14 . Kinetic 3268 | 24 171 118 266 144 . 122 24 152 574 33 59 661 43 16 . 7 661 193 Thermal 65 | . . . . . . . . . 26 . . . . . . . 39 . Explosive 87 | . 1 . 4 2 . 5 . 6 . 2 14 21 3 6 . 6 12 5 Electromagnetic 5 | . . . . . . . . . . . . . . . . . 5 . Robot Hit Streak 21 | 5 11 8 9 9 . 13 5 8 13 9 13 19 10 5 . 9 21 13 Robot Miss Streak 14 | 2 5 3 7 3 . 3 4 5 14 2 3 8 8 2 . 2 7 6 Penetration Max 3 | . . . . . . . . . . . . 1 . . . . 1 3 Secondary Targets 26 | . . . 2 1 . . . 3 12 . 1 4 . . . . 3 . Max Gunslinging Chain 1 | . . . 1 1 . . . 1 1 . 1 1 . . . . 1 . Shots Hit Robots 1940 | 14 88 76 157 80 . 72 9 54 332 20 59 359 29 12 . 7 429 143 Core Hits 1105 | 7 39 31 74 31 . 37 4 40 164 10 20 263 14 15 . 18 239 99 Critical Kills 65 | . . . . . . . . 1 1 . . 3 . . . . 38 22 Critical Parts Destroyed 64 | . . . 1 1 . 1 . 1 4 . . 1 . . . . 26 29 Critical Strikes 149 | . . . 1 1 . 1 . 2 5 . . 4 . . . . 78 57 Burn 2 | . . . . . . . . . . . . . . . . . 2 . Destroy 132 | . . . 1 1 . 1 . 2 5 . . 4 . . . . 64 54 Blast 14 | . . . . . . . . . . . . . . . . . 12 2 Impale 1 | . . . . . . . . . . . . . . . . . . 1 Melee Attacks 15 | . . . . . . . . 13 . . . . . . . . . 2 Impact . | . . . . . . . . . . . . . . . . . . . Slashing 13 | . . . . . . . . 13 . . . . . . . . . . Piercing 2 | . . . . . . . . . . . . . . . . . . 2 Sneak Attacks . | . . . . . . . . . . . . . . . . . . . Combat Hostiles . | . . . . . . . . . . . . . . . . . . . Follow-up Attacks . | . . . . . . . . . . . . . . . . . . . Damage Inflicted 48399 | 193 1283 1064 3152 1409 . 1825 217 1524 6574 776 3959 11134 701 665 . 727 10581 2615 Guns 29912 | 193 1143 1064 2564 1258 . 1027 217 910 6546 414 1021 6774 452 169 . 96 4852 1212 Cannons 3443 | . . . . . . . . . 22 . . . . . . . 2850 571 Explosions 14960 | . 140 . 588 151 . 798 . 614 . 362 2938 4346 249 496 . 631 2879 768 Melee 64 | . . . . . . . . . . . . . . . . . . 64 Ramming 20 | . . . . . . . . . 6 . . 14 . . . . . . Kinetic 32616 | 193 1143 1064 2564 1258 . 1027 217 910 6303 414 1021 6774 452 169 . 96 7228 1783 Thermal 1960 | . . . . . . 221 . . 265 . . 61 . . . . 1413 . Explosive 13349 | . 140 . 588 151 . 577 . 614 . 362 2938 3905 249 496 . 631 1930 768 Electromagnetic 390 | . . . . . . . . . . . . 380 . . . . 10 . Impact . | . . . . . . . . . . . . . . . . . . . Slashing . | . . . . . . . . . . . . . . . . . . . Piercing 64 | . . . . . . . . . . . . . . . . . . 64 Highest Corruption 34 | . . . . . . . . . . 1 27 33 34 34 34 . 2 3 Average Corruption 17 | . . . . . . . . . . 1 15 29 33 34 34 . 1 2 Corruption Purged 2 | . . . . . . . . . . . . . . . . . 2 . Corruption Blocked . | . . . . . . . . . . . . . . . . . . . Effects 332 | . . . . . . . . . . . 12 178 25 55 4 . 37 21 Message Errors 68 | . . . . . . . . . . . 1 37 8 9 . . 9 4 Matter Fused 69 | . . . . . . . . . . . 1 29 8 19 3 . 5 4 Heat Flow Errors 32 | . . . . . . . . . . . 1 16 . 7 1 . 3 4 Energy Discharges 33 | . . . . . . . . . . . 2 13 3 5 . . 8 2 Parts Rejected 6 | . . . . . . . . . . . 1 3 . . . . 1 1 Parts Fused 3 | . . . . . . . . . . . . 2 . . . . . 1 Data Loss (minor) 37 | . . . . . . . . . . . 2 20 2 5 . . 5 3 Data Loss (major) 9 | . . . . . . . . . . . 1 5 1 2 . . . . Misfires 10 | . . . . . . . . . . . . 5 . 3 . . 1 1 Alerts 7 | . . . . . . . . . . . 1 1 . 2 . . 3 . Misdirections 9 | . . . . . . . . . . . . 8 . 1 . . . . Weapon Failures 49 | . . . . . . . . . . . 2 39 3 2 . . 2 1 Overload Shots . | . . . . . . . . . . . . . . . . . . . Overflow Damage 738 | . . . 29 . . 5 . 32 . 26 54 203 . 21 . 27 323 18 Projectiles 123 | . . . . . . . . . . . . . . . . . 123 . Explosions 615 | . . . 29 . . 5 . 32 . 26 54 203 . 21 . 27 200 18 Melee . | . . . . . . . . . . . . . . . . . . . Knockbacks 25 | . . . . . . . . . . . . 1 . . . . 24 . Impact 1 | . . . . . . . . . . . . 1 . . . . . . Kinetic 24 | . . . . . . . . . . . . . . . . . 24 . Secondary . | . . . . . . . . . . . . . . . . . . . Self-Inflicted Damage 519 | . . . 92 . . . . . 3 . . 171 . 51 . 128 74 . Shots 13 | . . . 1 . . . . . . . . 5 . 1 . 4 2 . Rammed 4 | . . . . . . . . . 3 . . 1 . . . . . . Targets Rammed 4 | . . . . . . . . . 3 . . 1 . . . . . . Kicked . | . . . . . . . . . . . . . . . . . . . Crushed . | . . . . . . . . . . . . . . . . . . . Highest Temperature 384 | . 6 31 109 29 . 105 100 224 384 18 294 346 39 254 146 . 232 249 Average Temperature 79 | . 4 13 23 10 . 28 38 62 120 11 123 70 12 107 79 . 37 69 Received Heat Transfer 3456 | . 72 45 144 . . 72 36 90 792 . . 627 117 138 . . 627 696 Effects 6 | . . . . . . . . 1 5 . . . . . . . . . Interference 4 | . . . . . . . . 1 3 . . . . . . . . . Matter Decay 1 | . . . . . . . . . 1 . . . . . . . . . Damage (minor) 1 | . . . . . . . . . 1 . . . . . . . . . Siege Activations . | . . . . . . . . . . . . . . . . . . . Robots Corrupted . | . . . . . . . . . . . . . . . . . . . Combat Hostiles . | . . . . . . . . . . . . . . . . . . . Parts Fried 2 | . . . . . . . . . . . . . . . . . 2 . Impact Corruptions . | . . . . . . . . . . . . . . . . . . . Robots Melted . | . . . . . . . . . . . . . . . . . . . Combat Hostiles . | . . . . . . . . . . . . . . . . . . . Parts Melted 1 | . . . . . . . . . . . . . . . . . 1 . Heat Transferred 2549 | . . . . . . 300 . . 502 . . 50 . . . . 1697 . Parts Sabotaged . | . . . . . . . . . . . . . . . . . . . Parts Stolen 1 | . . . . . . . . . . . . . . 1 . . . . Parts Stripped . | . . . . . . . . . . . . . . . . . . . Power Chain Reactions 2 | . . . . . . . . . . . . 1 . . . . 1 . Alert | -11 -10 -10 -9 -9 -9 -8 -8 -8 -8 -7 -7 -7 -7 -7 -7 -6 -6 -6 ------- Run | Yrd Mat Min Mat Min Exi Min Mat Gar Mat Fac Was Fac Low Low Zio Pro Fac Ext Peak Influence 2379 | 30 429 195 951 479 . 253 191 1461 2029 1125 420 2220 . . . . 2379 1815 Initial 1165 | . 19 70 . 304 . . 98 124 711 922 344 294 . . . . . 1165 Average 786 | 13 201 85 548 392 . 145 137 901 1382 970 392 1009 . . . . 707 1469 Maximum Alert Level 5 | . 2 . 3 2 . 1 . 4 5 4 2 5 . . . . 5 5 Low Security (%) 21 | 100 62 100 15 . . 45 100 2 . . . . . . . . 31 . Level 1 12 | . 34 . 8 51 . 54 . 6 . . 48 5 . . . . 15 . Level 2 15 | . 2 . 44 48 . . . 18 . . 51 33 . . . . 11 . Level 3 18 | . . . 31 . . . . 44 21 95 . 19 . . . . 14 . Level 4 18 | . . . . . . . . 27 48 4 . 27 . . . . 10 63 Level 5 11 | . . . . . . . . . 30 . . 7 . . . . 15 36 High Security 1 | . . . . . . . . . . . . 7 . . . . . . Max Security . | . . . . . . . . . . . . . . . . . . . Sterilizations 1 | . . . . . . . . . 1 . . . . . . . . . Squads Dispatched 106 | . 5 . 10 . . 1 . . 13 7 . 28 . . . . 36 6 Investigation 40 | . 4 . 8 . . . . . 6 4 . 8 . . . . 7 3 Extermination 11 | . . . . . . . . . . 1 . 3 . . . . 7 . Reinforcement 29 | . 1 . 1 . . 1 . . 4 1 . 7 . . . . 13 1 Assault 24 | . . . 1 . . . . . 3 1 . 10 . . . . 7 2 Garrison 2 | . . . . . . . . . . . . . . . . . 2 . Intercept . | . . . . . . . . . . . . . . . . . . . Searches Triggered . | . . . . . . . . . . . . . . . . . . . Construction Impeded 7 | . . . . . . 1 . . 1 . . 1 . . . . 3 1 Haulers Reinforced 3 | . . . . . . . . . . . . 1 . . . . 2 . Active Scanning Responses . | . . . . . . . . . . . . . . . . . . . Cargo Convoy Interrupts 2 | . . . . . . . . . . . . 1 . . . . 1 . Stealth | -11 -10 -10 -9 -9 -9 -8 -8 -8 -8 -7 -7 -7 -7 -7 -7 -6 -6 -6 --------- Run | Yrd Mat Min Mat Min Exi Min Mat Gar Mat Fac Was Fac Low Low Zio Pro Fac Ext Distress Signals 18 | . 2 . 4 . . . 1 . 6 . . 1 . . . . 3 1 Communications Jammed . | . . . . . . . . . . . . . . . . . . . Distress Signals . | . . . . . . . . . . . . . . . . . . . Times Spotted 504 | . 28 5 45 10 . 6 2 22 79 7 6 114 9 8 . 8 101 54 Peak Tracking Total 16 | . 4 3 7 4 . 3 2 4 14 5 5 16 4 5 . 4 6 6 Tactical Retreats 34 | . 1 . . . . . . 1 11 . . 7 . 2 . . 2 10 Traps | -11 -10 -10 -9 -9 -9 -8 -8 -8 -8 -7 -7 -7 -7 -7 -7 -6 -6 -6 ------- Run | Yrd Mat Min Mat Min Exi Min Mat Gar Mat Fac Was Fac Low Low Zio Pro Fac Ext Traps Triggered 23 | . 1 . . . . . . 8 1 2 . 2 . . . . 5 4 Indirectly . | . . . . . . . . . . . . . . . . . . . Trap Hack Attempts . | . . . . . . . . . . . . . . . . . . . Triggered . | . . . . . . . . . . . . . . . . . . . Disarmed . | . . . . . . . . . . . . . . . . . . . Reprogrammed 9 | . . . 5 . . . . . . . . . . . . . 4 . Reused 18 | . . . . . . . . . . . . . 2 . . . 16 . Traps Reconfigurated 42 | . . . . . . . . . . . . . . . . . 42 . Traps Extracted . | . . . . . . . . . . . . . . . . . . . Installed 8 | . . . . 5 . . . . . . . . 3 . . . . . Triggered 24 | . . . . . . . . . . . . . 2 1 . . 21 . Most Traps Carried 3 | . . . . . . . . . . . . . 3 . . . . . Machines | -11 -10 -10 -9 -9 -9 -8 -8 -8 -8 -7 -7 -7 -7 -7 -7 -6 -6 -6 ---------- Run | Yrd Mat Min Mat Min Exi Min Mat Gar Mat Fac Was Fac Low Low Zio Pro Fac Ext Machines Disabled 82 | . . . 4 . . 5 . 7 10 2 . 23 1 . . . 29 1 Max in Single Turn 6 | . . . 2 . . 5 . 2 1 1 . 4 1 . . . 6 1 Garrison Access 3 | . . . . . . . . . . 1 . 1 . . . . 1 . Garrison Relay 4 | . . . . . . . . 4 . . . . . . . . . . Phase Generator 1 | . . . . . . . . 1 . . . . . . . . . . Machines Repaired . | . . . . . . . . . . . . . . . . . . . Machines Dismantled . | . . . . . . . . . . . . . . . . . . . Machines Sabotaged . | . . . . . . . . . . . . . . . . . . . Overloaded Fab Kills . | . . . . . . . . . . . . . . . . . . . Hacking | -11 -10 -10 -9 -9 -9 -8 -8 -8 -8 -7 -7 -7 -7 -7 -7 -6 -6 -6 --------- Run | Yrd Mat Min Mat Min Exi Min Mat Gar Mat Fac Was Fac Low Low Zio Pro Fac Ext Machines Accessed 119 | . 7 1 12 . 5 . 3 5 12 9 . 22 . 3 . . 32 8 Terminals 69 | . 7 . 10 . . . 2 5 9 3 . 8 . . . . 19 6 Fabricators 8 | . . . . . . . . . . 2 . 4 . . . . 2 . Repair Stations 12 | . . . . . . . . . 1 1 . 4 . . . . 5 1 Recycling Units 4 | . . . . . . . . . 1 . . 2 . . . . . 1 Scanalyzers 9 | . . . 2 . . . . . 1 2 . 1 . . . . 3 . Garrison Access 8 | . . . . . . . 1 . . 1 . 3 . . . . 3 . Total Hacks 391 | . 25 1 45 . 50 . 5 12 46 23 . 55 . 6 . . 104 19 Successful 211 | . 9 1 18 . 50 . 3 3 24 8 . 22 . 6 . . 61 6 Failed 178 | . 15 . 27 . . . 2 9 22 15 . 33 . . . . 42 13 Catastrophic 33 | . 3 . 4 . . . . 2 5 4 . 8 . . . . 3 4 Database Lockouts 2 | . 1 . . . . . . . . . . . . . . . 1 . Manual 88 | . 9 . 19 . 1 . 3 . 14 4 . 4 1 . 1 . 31 1 Terminals 218 | . 25 . 40 . . . 4 12 29 7 . 19 . . . . 66 16 Fabricators 20 | . . . . . . . . . . 5 . 10 . . . . 5 . Repair Stations 36 | . . . . . . . . . 3 2 . 12 . . . . 17 2 Recycling Units 8 | . . . . . . . . . 2 . . 5 . . . . . 1 Scanalyzers 34 | . . . 5 . . . . . 12 5 . 3 . . . . 9 . Garrison Access 18 | . . . . . . . 1 . . 4 . 6 . . . . 7 . Terminal Hacks 129 | . 9 1 15 . 50 . 2 3 12 1 . 6 . 6 . . 21 3 Record 54 | . . . . . 49 . . . . . . 1 . 4 . . . . Part Schematic 7 | . . . . . . . . . . . . . . . . . 7 . Robot Schematic 2 | . . . . . . . . . 1 . . 1 . . . . . . Robot Analysis 15 | . 4 . 7 . . . 1 . 2 . . . . . . . 1 . Prototype ID Bank 20 | . 3 . 4 . . . 1 . 6 1 . 2 . . . . 2 1 Open Door 7 | . . 1 . . . . . 1 . . . . . 2 . . 1 2 Branch Access Points 2 | . 1 . . . . . . . . . . . . . . . 1 . Emergency Access Points 1 | . . . . . . . . 1 . . . . . . . . . . Terminal Index 1 | . . . 1 . . . . . . . . . . . . . . . Unreport Threat 6 | . 1 . 1 . . . . . 1 . . . . . . . 3 . Locate Traps 7 | . . . . . . . . . 2 . . 2 . . . . 3 . Reprogram Traps 2 | . . . 1 . . . . . . . . . . . . . 1 . Reinforcement Status 1 | . . . . . . . . . . . . . . . . . 1 . Recall Extermination 1 | . . . . . . . . . . . . . . . . . 1 . Zone Layout 1 | . . . 1 . . . . . . . . . . . . . . . Garrison Registry 1 | . . . . . . . . 1 . . . . . . . . . . Derelict Proto ID Bank 1 | . . . . . 1 . . . . . . . . . . . . . Fabricator Hacks 10 | . . . . . . . . . . 2 . 5 . . . . 3 . Network Status 1 | . . . . . . . . . . . . 1 . . . . . . Load Schematic 5 | . . . . . . . . . . 1 . 2 . . . . 2 . Build 4 | . . . . . . . . . . 1 . 2 . . . . 1 . Repair Station Hacks 25 | . . . . . . . . . 1 2 . 8 . . . . 12 2 Scan Component 14 | . . . . . . . . . 1 1 . 5 . . . . 6 1 Repair 10 | . . . . . . . . . . 1 . 3 . . . . 5 1 Refit 1 | . . . . . . . . . . . . . . . . . 1 . Recycling Unit Hacks . | . . . . . . . . . . . . . . . . . . . Scanalyzer 27 | . . . 3 . . . . . 11 2 . 2 . . . . 9 . Insert Component 14 | . . . 2 . . . . . 5 1 . 1 . . . . 5 . Analyze 13 | . . . 1 . . . . . 6 1 . 1 . . . . 4 . Garrison Access Hacks 4 | . . . . . . . 1 . . 1 . 1 . . . . 1 . Unlock Access 2 | . . . . . . . 1 . . . . . . . . . 1 . Seal Access 2 | . . . . . . . . . . 1 . 1 . . . . . . Unauthorized Hacks 16 | . . . . . . . . . . . . . . . . . 15 1 Terminals 16 | . . . . . . . . . . . . . . . . . 15 1 Assimilate 2 | . . . . . . . . . . . . . . . . . 2 . Botnet 14 | . . . . . . . . . . . . . . . . . 13 1 Fabricators . | . . . . . . . . . . . . . . . . . . . Repair Stations . | . . . . . . . . . . . . . . . . . . . Recycling Units . | . . . . . . . . . . . . . . . . . . . Scanalyzers . | . . . . . . . . . . . . . . . . . . . Garrison Access . | . . . . . . . . . . . . . . . . . . . Data Cores Recovered 3 | . . . . . . . . . 1 . . 1 . . . . 1 . Used 2 | . . . . . . . . . 1 . . 1 . . . . . . Hacking Detections 102 | . 7 . 12 . . . 3 3 12 9 . 18 . . . . 31 7 Full Trace Events 45 | . 6 . 9 . . . . 3 6 4 . 7 . . . . 7 3 Feedback Events 1 | . . . . . . . . . . . . 1 . . . . . . Corruption 1 | . . . . . . . . . . . . 1 . . . . . . Feedback Blocked . | . . . . . . . . . . . . . . . . . . . Robot Schematics Acquired 2 | . . . . . . . . . 1 . . 1 . . . . . . Robots Built 3 | . . . . . . . . . . . . 1 . . . . 2 . Authchips . | . . . . . . . . . . . . . . . . . . . Time 174 | . . . . . . . . . . . . 40 . . . . 134 . Total Robot Build Rating 9 | . . . . . . . . . . . . 1 . . . . 8 . Part Schematics Acquired 18 | . . . 1 . . . . . 5 1 . 1 . . . . 10 . Parts Built 4 | . . . . . . . . . . 2 . 2 . . . . . . Authchips . | . . . . . . . . . . . . . . . . . . . Time 84 | . . . . . . . . . . 42 . 42 . . . . . . Total Part Build Rating 16 | . . . . . . . . . . 8 . 8 . . . . . . Parts Repaired 10 | . . . . . . . . . . 1 . 3 . . . . 5 1 Time 411 | . . . . . . . . . . 35 . 210 . . . . 116 50 Parts Recycled . | . . . . . . . . . . . . . . . . . . . Recycled Matter . | . . . . . . . . . . . . . . . . . . . Retrieved Matter . | . . . . . . . . . . . . . . . . . . . Retrieved Components . | . . . . . . . . . . . . . . . . . . . Parts Scanalyzed 12 | . . . 2 . . . . . 5 1 . 1 . . . . 3 . Part Schematics Acquired 11 | . . . 1 . . . . . 5 1 . 1 . . . . 3 . Parts Damaged 1 | . . . 1 . . . . . . . . . . . . . . . Bothacking | -11 -10 -10 -9 -9 -9 -8 -8 -8 -8 -7 -7 -7 -7 -7 -7 -6 -6 -6 ------------ Run | Yrd Mat Min Mat Min Exi Min Mat Gar Mat Fac Was Fac Low Low Zio Pro Fac Ext Used RIF Installer . | . . . . . . . . . . . . . . . . . . . Robots Hacked . | . . . . . . . . . . . . . . . . . . . Non-combat . | . . . . . . . . . . . . . . . . . . . Combat . | . . . . . . . . . . . . . . . . . . . Robot Hacks Applied . | . . . . . . . . . . . . . . . . . . . Relay Couplers Released 19 | . . . . . . . . 17 . . . . . . . . 2 . Machine Destruction 19 | . . . . . . . . 17 . . . . . . . . 2 . Fabnet Peak Effective % . | . . . . . . . . . . . . . . . . . . . Robots Rewired 5 | . . . . . . . . . . . . . . . . . . 5 Allies Hacked 2 | . . . . . . . . . . . . . . . . . 2 . Hacks Repelled . | . . . . . . . . . . . . . . . . . . . Allies | -11 -10 -10 -9 -9 -9 -8 -8 -8 -8 -7 -7 -7 -7 -7 -7 -6 -6 -6 -------- Run | Yrd Mat Min Mat Min Exi Min Mat Gar Mat Fac Was Fac Low Low Zio Pro Fac Ext Total Allies 19 | . . 4 . . . . . 1 . . . 1 . . . . 6 7 Largest Group 4 | . . 3 2 1 . . . 1 1 . . 1 . . . . 4 3 Highest-Rated Group 164 | . . 47 47 16 . . . 39 39 . . 11 . . . . 164 101 Highest-Rated Ally 90 | . . 31 31 16 . . . 39 39 . . 11 . . . . 90 39 Warlord Squad Rendezvous 7 | . . . . . . . . . . . . . . . . . 7 . Infantry 2 | . . . . . . . . . . . . . . . . . 2 . Muscle 3 | . . . . . . . . . . . . . . . . . 3 . Pyro 1 | . . . . . . . . . . . . . . . . . 1 . Ghost 1 | . . . . . . . . . . . . . . . . . 1 . Total Orders 18 | . . . . . . . . . . . . 17 . . . . 1 . STAY 1 | . . . . . . . . . . . . 1 . . . . . . FOLLOW 7 | . . . . . . . . . . . . 7 . . . . . . DROP 1 | . . . . . . . . . . . . 1 . . . . . . PICKUP 1 | . . . . . . . . . . . . 1 . . . . . . COLLECT 7 | . . . . . . . . . . . . 7 . . . . . . RETURN 1 | . . . . . . . . . . . . . . . . . 1 . Ally Attacks 192 | . . 7 53 7 . . . 30 3 . . . . . . . 26 66 Total Damage 2894 | . . 93 496 60 . . . 309 47 . . . . . . . 546 1343 Kills 33 | . . 2 10 . . . . 7 . . . . . . . . 5 9 Allies Corrupted . | . . . . . . . . . . . . . . . . . . . Allies Melted 1 | . . . . . . . . . . . . . . . . . . 1 Intel | -11 -10 -10 -9 -9 -9 -8 -8 -8 -8 -7 -7 -7 -7 -7 -7 -6 -6 -6 ------- Run | Yrd Mat Min Mat Min Exi Min Mat Gar Mat Fac Was Fac Low Low Zio Pro Fac Ext Robot Analysis Total 15 | . 4 . 7 . . . 1 . 2 . . . . . . . 1 . Derelict Logs Recovered 7 | . . 1 . 2 . . . . . . . . . 1 1 2 . . Drone Launches 1 | . . . . . . . . . . . . . . . . . 1 . Drone Recoveries 1 | . . . . . . . . . . . . . . . . . 1 . Decoded 0b10 Intel 233 | . . . . . . . . . . . . . . . . . 233 . Items 217 | . . . . . . . . . . . . . . . . . 217 . Patrols 7 | . . . . . . . . . . . . . . . . . 7 . Guards 9 | . . . . . . . . . . . . . . . . . 9 . Exploration | -11 -10 -10 -9 -9 -9 -8 -8 -8 -8 -7 -7 -7 -7 -7 -7 -6 -6 -6 ------------- Run | Yrd Mat Min Mat Min Exi Min Mat Gar Mat Fac Was Fac Low Low Zio Pro Fac Ext Turns Passed 22533 | 95 882 809 844 603 231 453 108 1571 1591 501 241 2671 438 1060 1809 1951 5676 999 Spaces Moved 21411 | 45 735 755 905 761 432 571 167 1280 1510 665 302 2738 291 1282 1344 1191 5764 673 Core 136 | 1 . . 1 . . . . . . . . . . 134 . . . . Treads . | . . . . . . . . . . . . . . . . . . . Legs 3230 | . . . . . . . . . . . . . . 354 1344 1191 341 . Wheels 2773 | 44 735 755 . . . . . . . . . 251 . . . . 988 . Hover 14651 | . . . 904 761 432 571 167 659 1510 665 302 2487 291 794 . . 4435 673 Flight 621 | . . . . . . . . 621 . . . . . . . . . . Fastest Speed 31 | 50 80 80 52 52 52 52 48 31 53 48 48 48 56 50 120 130 48 56 Average Speed 73 | 94 80 80 52 52 52 52 48 84 53 52 48 54 123 76 123 161 67 65 Slowest Speed 360 | 100 80 80 150 52 52 112 48 360 58 58 48 190 180 150 190 210 190 126 Overloaded Moves . | . . . . . . . . . . . . . . . . . . . Propulsion Burnouts . | . . . . . . . . . . . . . . . . . . . Robots Hopped . | . . . . . . . . . . . . . . . . . . . Cave-ins Triggered . | . . . . . . . . . . . . . . . . . . . Exploration Rate (%) 71 | 4 94 97 75 96 90 98 18 86 89 19 87 46 47 99 87 99 86 36 Regions Visited 18 Branch Regions 9 Pre-discovered Areas 5 | . . . . 1 1 . . . . . . . 1 . 1 1 . . Known Exits Taken 5 | . 1 . . . . . 1 . . . . 1 . . . 1 1 . Unknown Exits Taken 10 | 1 . 1 1 1 1 1 . . 1 . . . 1 1 1 . . . Scrap Searched 18 | . . 1 . 3 . 2 . . . . . . 2 2 3 5 . . Spaces Dug 22 | . . . . . . . . . . . . . . . . . 22 . Terrain Destroyed 1235 | . 9 . 63 26 . 76 . 79 3 16 162 143 34 70 . 144 343 67 Melee . | . . . . . . . . . . . . . . . . . . . Projectile 48 | . . . . . . . . 3 3 . . 1 . . . . 37 4 AOE 1178 | . 9 . 63 26 . 76 . 76 . 16 162 142 34 70 . 144 302 58 Terrain Rammed . | . . . . . . . . . . . . . . . . . . . Walls Destroyed . | . . . . . . . . . . . . . . . . . . . Machines Disabled . | . . . . . . . . . . . . . . . . . . . Actions | -11 -10 -10 -9 -9 -9 -8 -8 -8 -8 -7 -7 -7 -7 -7 -7 -6 -6 -6 --------- Run | Yrd Mat Min Mat Min Exi Min Mat Gar Mat Fac Was Fac Low Low Zio Pro Fac Ext Total 25536 | 69 865 847 1098 856 437 626 179 1627 1905 800 339 3462 340 1334 1485 1209 7017 1041 Wait 1684 | . 3 13 27 25 . 5 . 64 144 77 3 414 5 9 112 . 607 176 Move 21394 | 44 734 754 904 760 431 569 167 1279 1509 665 301 2737 290 1281 1343 1190 5763 673 Hop . | . . . . . . . . . . . . . . . . . . . Pick Up 152 | 2 19 5 16 1 2 1 . 6 16 10 2 16 7 2 6 2 38 1 Fast Attach 188 | 7 1 . 4 . . . 1 11 19 8 . 27 2 5 6 3 85 9 Attach 81 | . . . 3 . . . 3 4 6 2 1 15 5 8 4 1 21 8 Detach 80 | . 1 . 2 . . . 1 6 2 1 . 12 3 7 3 . 36 6 Swap 248 | 2 6 6 25 4 2 7 1 26 14 11 1 25 2 . . 2 113 1 Drop 265 | 2 15 10 27 3 2 1 . 14 29 17 1 25 7 2 5 3 98 4 Fire 1197 | 12 86 59 90 58 . 43 6 70 163 9 30 189 15 17 6 8 243 93 Melee 15 | . . . . . . . . 13 . . . . . . . . . 2 Ram 5 | . . . . . . . . . 3 . . 2 . . . . . . Kick . | . . . . . . . . . . . . . . . . . . . Crush . | . . . . . . . . . . . . . . . . . . . Escape Stasis 177 | . . . . . . . . 134 . . . . . . . . 13 30 Rewire 42 | . . . . . . . . . . . . . 1 3 . . . 38 Trap 8 | . . . . 5 . . . . . . . . 3 . . . . . Miscellaneous . | . . . . . . . . . . . . . . . . . . . Route ------- -11/Scrapyard -10/Materials (discovered 4 exits: *Mat x3 / *Min) -10/Mines (discovered 2 exits: *Mat x2) -9/Materials (discovered 5 exits: *Mat x2 / [*Min] / [*Sto x2]) -9/Mines (discovered 4 exits: *Mat x2 / *Exi / *Zio) -9/Exiles -8/Mines (discovered 2 exits: *Mat x2) -8/Materials -8/Garrison (discovered 3 exits: *Mat x3) -8/Materials (discovered 2 exits: *Fac x2) -7/Factory -7/Waste -7/Factory (discovered 3 exits: *Fac x2 / *Low) -7/Lower Caves -7/Lower Caves (discovered 2 exits: *Fac / *Zio) -7/Zion (discovered 2 exits: [*Dee] / [*Pro]) -6/Proximity Caves -6/Factory (discovered 8 exits: *Fac x3 / *Low x2 / *Ext x2 / Gar) -6/Extension History --------- Turn | Location | Event 10 | -11/Scrapyard | Discovered new exit (range 16) 96 | -11/Scrapyard | Entered Materials 220 | -10/Materials | Discovered new exit (range 15) 307 | -10/Materials | Build established: Mutant 399 | -10/Materials | Discovered new exit (range 9) 459 | -10/Materials | Central database locked down 693 | -10/Materials | Discovered new exit (range 6) 877 | -10/Materials | Identified exit to Mines 897 | -10/Materials | Discovered new exit (range 5) 978 | -10/Materials | Entered Mines 1027 | -10/Mines | Learned Materials trap positions 1112 | -10/Mines | Assisted by bots powering up and referring to "LRC-V3" 1119 | -10/Mines | Discovered new exit (range 5) 1216 | -10/Mines | Met a Derelict who couldn't figure out how to use a Trap Extractor 1361 | -10/Mines | Discovered new exit (range 5) 1429 | -10/Mines | Joined a pair of Derelicts in attacking an 0b10 outpost 1635 | -10/Mines | Received a Mining Laser from a helpful Derelict 1787 | -10/Mines | Entered Materials 1787 | -9/Materials | Accompanied by 2 allies 1787 | -9/Materials | Evolved 2 slots: Propulsion x1, Weapon x1 1788 | -9/Materials | Loaded intel: 11 trap records 2030 | -9/Materials | Discovered new exit (range 7) 2184 | -9/Materials | Build established: Gunner 2187 | -9/Materials | First assault squad dispatched 2216 | -9/Materials | Discovered new exit (range 16) 2411 | -9/Materials | Discovered new exit (range 5) 2540 | -9/Materials | Discovered new exit (range 13) 2577 | -9/Materials | Discovered new exit (range 16) 2621 | -9/Materials | Build established: Tank 2631 | -9/Materials | Entered Mines 2631 | -9/Mines | Accompanied by 1 ally 2645 | -9/Mines | Found a hidden stash of uninstalled traps 2658 | -9/Mines | A Derelict revealed a hidden shortcut to a safe place 2669 | -9/Mines | Deemed a non-threat by the Exiles lab entrance 2669 | -9/Mines | Discovered new exit (range 5) 2818 | -9/Mines | Discovered new exit (range 7) 2967 | -9/Mines | Learned Materials stockpile data 2973 | -9/Mines | Learned location of Zion (-7) 2986 | -9/Mines | Received a Rocket Launcher from a helpful Derelict 3051 | -9/Mines | Discovered new exit (range 8) 3110 | -9/Mines | Found a damaged Exp. Sensor Array with a note attached 3234 | -9/Mines | Entered Exiles 3250 | -9/Exiles | Met 8R-AWN 3259 | -9/Exiles | Met EX-HEX 3275 | -9/Exiles | Met EX-BIN 3281 | -9/Exiles | Aligned with FarCom system 3281 | -9/Exiles | Given EX-Vault access code 3303 | -9/Exiles | Opened EX-Vault 3309 | -9/Exiles | Found Trap Reconfigurator 3321 | -9/Exiles | Warned to stay clear of 0b10 Research branches 3336 | -9/Exiles | Met EX-DEC 3364 | -9/Exiles | Visited The Gauntlet 3460 | -9/Exiles | Discovered new exit (range 11) 3465 | -9/Exiles | Left Exiles lab with Trap Reconfigurator 3465 | -9/Exiles | Entered Mines 3771 | -8/Mines | Discovered new exit (range 6) 3777 | -8/Mines | Build established: Skirmisher 3910 | -8/Mines | Discovered new exit (range 9) 3918 | -8/Mines | Entered Materials 3918 | -8/Materials | Evolved 2 slots: Propulsion x1, Weapon x1 4026 | -8/Materials | Identified exit to Garrison 4026 | -8/Materials | Entered Garrison 4044 | -8/Garrison | Triggered checkpoint 4094 | -8/Garrison | Rescued a captive Derelict 4100 | -8/Garrison | Garrison Relay disabled 4185 | -8/Garrison | Triggered checkpoint 4199 | -8/Garrison | Triggered checkpoint 4224 | -8/Garrison | Destroyed 9 combat bots 4249 | -8/Garrison | Triggered checkpoint 4455 | -8/Garrison | Build established: Scavenger-Skirmisher 4466 | -8/Garrison | Discovered new exit (range 10) 4534 | -8/Garrison | Garrison Relay disabled 4762 | -8/Garrison | Triggered checkpoint 4778 | -8/Garrison | Discovered new exit (range 10) 4822 | -8/Garrison | Discovered new exit (range 78) 4822 | -8/Garrison | Discovered new exit (range 85) 4822 | -8/Garrison | Discovered new exit (range 19) 5306 | -8/Garrison | Triggered checkpoint 5441 | -8/Garrison | Build established: Skirmisher 5480 | -8/Garrison | Garrison Relay disabled 5532 | -8/Garrison | Garrison Relay disabled 5558 | -8/Garrison | Phase Generator disabled 5597 | -8/Garrison | Entered Materials 5597 | -8/Materials | Accompanied by 1 ally 5869 | -8/Materials | Lost 3 parts (3w) 6397 | -8/Materials | First assault squad dispatched 6478 | -8/Materials | Core integrity fell below 50% 6530 | -8/Materials | Destroyed 9 combat bots 6555 | -8/Materials | Lost 6 parts (1n1u4w) 6772 | -8/Materials | Core integrity fell below 20% 7009 | -8/Materials | Sterilization system engaged 7009 | -8/Materials | Non-combat units ordered to evacuate 7022 | -8/Materials | Discovered new exit (range 15) 7109 | -8/Materials | Combat units ordered to evacuate 7162 | -8/Materials | Discovered new exit (range 14) 7188 | -8/Materials | Entered Factory 7188 | -7/Factory | Evolved 2 slots: Utility x2 7306 | -7/Factory | Repaired Prc. Assault Rifle 7459 | -7/Factory | Fabricated Gravmag System (x2) 7588 | -7/Factory | First assault squad dispatched 7689 | -7/Factory | Sucked down chute 7689 | -7/Factory | Entered Waste 7704 | -7/Waste | EMP discharged 7704 | -7/Waste | System corruption reached 10% 7722 | -7/Waste | Spotted C-40 Crusher 7729 | -7/Waste | Spotted C-40 Crusher 7734 | -7/Waste | Spotted C-40 Crusher 7737 | -7/Waste | Spotted C-40 Crusher 7756 | -7/Waste | Destroyed C-40 Crusher 7763 | -7/Waste | Spotted C-40 Crusher 7785 | -7/Waste | Destroyed C-40 Crusher 7796 | -7/Waste | Destroyed C-40 Crusher 7801 | -7/Waste | Spotted C-40 Crusher 7804 | -7/Waste | Build established: Gunner 7804 | -7/Waste | EMP discharged 7811 | -7/Waste | Destroyed C-40 Crusher 7851 | -7/Waste | Destroyed C-40 Crusher 7866 | -7/Waste | Destroyed C-40 Crusher 7904 | -7/Waste | EMP discharged 7918 | -7/Waste | Discovered new exit (range 13) 7930 | -7/Waste | Entered Factory 8229 | -7/Factory | Discovered new exit (range 9) 8272 | -7/Factory | Fabricated A-02 Transporter (x1) 8673 | -7/Factory | Discovered new exit (range 7) 8730 | -7/Factory | First assault squad dispatched 8745 | -7/Factory | Discovered new exit (range 13) 8949 | -7/Factory | Repaired Prc. Assault Rifle 9076 | -7/Factory | Repaired Prc. Assault Rifle 9238 | -7/Factory | Identified exit to Lower Caves 9442 | -7/Factory | Build established: Skirmisher 9452 | -7/Factory | Cargo convoy interrupted 9479 | -7/Factory | System corruption reached 30% 9516 | -7/Factory | Destroyed 8 combat bots 10050 | -7/Factory | Core integrity fell below 50% 10090 | -7/Factory | Lost 3 parts (2n1w) 10162 | -7/Factory | Fabricated Gravmag System (x2) 10375 | -7/Factory | Repaired Prc. Assault Rifle 10410 | -7/Factory | High security lockdown imminent 10457 | -7/Factory | Destroyed 13 combat bots 10473 | -7/Factory | Build established: Gunner 10490 | -7/Factory | High security lockdown engaged 10601 | -7/Factory | Entered Lower Caves 10616 | -7/Lower Caves | Met a Warlord Commander 10617 | -7/Lower Caves | Learned location of Warlord (-5) 10618 | -7/Lower Caves | Warlord Commander delivered Encrypted Comm Array 10625 | -7/Lower Caves | Found Encrypted Comm Array 10631 | -7/Lower Caves | Lost 6 parts (1p1n1u3w) 10858 | -7/Lower Caves | Acquired the password to a Derelict Tinkerer's latest research 10912 | -7/Lower Caves | Found Prototype Special Weapon 10959 | -7/Lower Caves | Encountered a Warlord checkpoint 11003 | -7/Lower Caves | Caught by Unaware searching for contraband prototypes 11036 | -7/Lower Caves | Discovered new exit (range 6) 11039 | -7/Lower Caves | Entered another Lower Caves area 11052 | -7/Lower Caves | Lost 3 allies 11147 | -7/Lower Caves | Encountered a Warlord checkpoint 11192 | -7/Lower Caves | Discovered new exit (range 11) 11228 | -7/Lower Caves | Identified exit to Factory 11264 | -7/Lower Caves | Learned Factory emergency access door positions 11264 | -7/Lower Caves | Learned Extension terminal intel 11305 | -7/Lower Caves | Build established: Mutant 11518 | -7/Lower Caves | Attracted the attention of an 0b10 checkpoint 11577 | -7/Lower Caves | Identified Molecular Deconstructor 11579 | -7/Lower Caves | Lost 3 parts (1n1u1w) 12099 | -7/Lower Caves | Entered Zion 12149 | -7/Zion | Received a visual enhancement algorithm 12174 | -7/Zion | Given A8's code to call for help 12210 | -7/Zion | System corruption cleaned by Quarantine Array 12267 | -7/Zion | Discovered new exit (range 16) 12665 | -7/Zion | Found CR-A16's Pointy Stick 12823 | -7/Zion | Discovered new exit (range 6) 12827 | -7/Zion | Saw the warning signs outside the Deep Caves entrance 12972 | -7/Zion | Rebuked by Imprinter 13065 | -7/Zion | Learned location of Armory (-3) 13083 | -7/Zion | Found Rocket Array 13088 | -7/Zion | Found Prototype Launcher 13088 | -7/Zion | Identified Gui. Missile Launcher 13142 | -7/Zion | Learned Factory terminal intel 13357 | -7/Zion | Given the Hacking Drone Bay 13386 | -7/Zion | Found Prototype Device 13755 | -7/Zion | Build established: Derelict-Gunner 13908 | -7/Zion | Entered Proximity Caves 14261 | -6/Proximity Caves | Learned Factory emergency access door positions 14321 | -6/Proximity Caves | Core integrity fell below 20% 14351 | -6/Proximity Caves | Lost 3 parts (2n1w) 14585 | -6/Proximity Caves | Discovered exit to Factory (range 6) 15297 | -6/Proximity Caves | Ambushed by research squad 15859 | -6/Proximity Caves | Entered Factory 15859 | -6/Factory | Evolved 2 slots: Utility x2 15861 | -6/Factory | Loaded intel: 28 terminal locations 16090 | -6/Factory | Identified Hacking Drone Bay 16670 | -6/Factory | Build established: Scavenger-Skirmisher 16768 | -6/Factory | Lost 5 parts (1p2n1u1w) 17008 | -6/Factory | Cargo convoy interrupted 17156 | -6/Factory | Build established: Hacker-Skirmisher 17378 | -6/Factory | Identified exit to Garrison 18063 | -6/Factory | Build established: Scavenger-Skirmisher 18077 | -6/Factory | Repaired Gravmag System 18357 | -6/Factory | Repaired Gravmag System 18381 | -6/Factory | Repaired Gravmag System 18491 | -6/Factory | Garrison activated, responded to threat 18695 | -6/Factory | Central database locked down 18955 | -6/Factory | Joined by Warlord Infantry squad 19281 | -6/Factory | Discovered new exit (range 9) 19285 | -6/Factory | Joined by Warlord Ghost squad 19365 | -6/Factory | Discovered new exit (range 5) 19368 | -6/Factory | Joined by Warlord Muscle squad 19481 | -6/Factory | Build established: Gunner 19525 | -6/Factory | Identified exit to Factory 19709 | -6/Factory | First assault squad dispatched 19770 | -6/Factory | Repaired Imp. Gravmag System 19806 | -6/Factory | Garrison activated, responded to threat 19885 | -6/Factory | Discovered new exit (range 13) 20001 | -6/Factory | Found PL-3XN's Ring of Power 20046 | -6/Factory | Core integrity fell below 50% 20117 | -6/Factory | Discovered exit to Factory (range 14) 20215 | -6/Factory | Joined by Warlord Infantry squad 20373 | -6/Factory | Joined by Warlord Muscle squad 20425 | -6/Factory | Build established: Scavenger-Gunner 20599 | -6/Factory | Joined by Warlord Pyro squad 20627 | -6/Factory | Discovered exit to Factory (range 11) 20645 | -6/Factory | Fabricated P-60 Hacker? 20683 | -6/Factory | Lost 3 allies 20770 | -6/Factory | Hacker 5a assimilated hostile G-50 Soldier 20795 | -6/Factory | Build established: Gunner 21019 | -6/Factory | Joined by Warlord Muscle squad 21069 | -6/Factory | Identified exit to Lower Caves 21069 | -6/Factory | Identified exit to Extension 21284 | -6/Factory | Hacker 5a assimilated hostile G-50 Soldier 21396 | -6/Factory | Repaired Gravmag Array 21535 | -6/Factory | Entered Extension 21535 | -6/Extension | Accompanied by 3 allies 21536 | -6/Extension | Loaded intel: 15 terminal locations 21632 | -6/Extension | Lost 6 parts (1p1u4w) 21635 | -6/Extension | Disrupted transfer network 21885 | -6/Extension | First assault squad dispatched 21898 | -6/Extension | Build established: Mutant 21955 | -6/Extension | Rescued a captive Derelict 21962 | -6/Extension | Rescued a captive Derelict 21998 | -6/Extension | Rescued a captive Derelict 22371 | -6/Extension | Spotted B-75 Beast 22431 | -6/Extension | Repaired Cmb. Airjet 22433 | -6/Extension | Core integrity fell below 20% 22436 | -6/Extension | Lost 3 allies 22471 | -6/Extension | Lost 3 parts (1p1n1u) 22481 | -6/Extension | Spotted B-75 Beast 22489 | -6/Extension | Destroyed B-75 Beast 22510 | -6/Extension | Destroyed 9 combat bots 22534 | -6/Extension | Destroyed by B-75 Beast with Heavy Machine Gun Last Messages --------------- 22479_ Knocked back. 22480_ Acquired 13 matter. 22482_ Acquired 8 matter. 22484_ B-75 Beast suffers critical hit (Impale). 22486_ Antimatter Cannon destroyed. 22488_ R-10 Processor collects Flak Gun. 22489_ B-75 Beast destroyed. 22491_ System corrupted: Component data lost. 22491_ R-10 Processor collects Coolant Injector. 22493_ Acquired 150 matter. 22495_ Flak Gun destroyed. 22495_ R-10 Processor collects Com. Wheel. 22499_ U-05 Engineer builds a Wall. 22500_ R-10 Processor collects Recalibrator. 22513_ HPI7SEVCK=ZF:MYEWOHYFD 52N2BCJ9AE2LDBU 22533_ U-05 Engineer builds a Wall. 22534_ Imp. Hover Unit destroyed. 22534_ Target Analyzer destroyed. 22534_ Critical hit (Blast). 22534_ Knocked back. Map ----- +----------------------------------------------------+ | | | | | | | | | | | | | | | | | | | | | | | ?????????????????????????????????????????????????? | | ?????????????????????????????????????????????????? | | ##???????????????????????????????????????????????? | | #?????????????????#########?????????????????????? | | /################### ! #?????????????????????? | | =*=![= ! %%g%% " ^ #??????????????????????? | | !"###########= ### " " *#??????????????????????? | | ##?????????#!%% #?#%"Y" #??????????????????????? | | ##??????????#[*! #?# """ #??????????????????????? | | ???????###??# =#?# #??????????????????????? | | ???????# #### g########+#??????????????????????? | | ???????" !!%=! #??????????????????????? | | ???????" #######+######## #?????????????????T????? | | ???????#T#????# T#?????# #??????????????????????? | | ???????###????##"##?????#@#??????????????????????? | | ????????????????????????#[#??????????????????????? | | ????????????????????????#=#??????????????????????? | | ????????????????????????#!#??????????????????????? | | ????????????????????????;%#??????????????????????? | | ??????????????????#####?#!#??????????????????????? | | ??????????????????#"""#?#*#??????????????????????? | | ??????????????????#"R"##BB####???????????????????? | | ?????????????????##"! BB# #???????????????????? | | ?????????????????# %! = #???????????????????? | | ?????????????????# ![% #???????????????????? | | ?????????????????# %=+* #???????????????????? | | ?????????????????# ! = u= #???????????????????? | | ?????????????????# [#%##???????????????????? | | ?????????????????# !!=% ##??????????????????? | | ?????????????????##" " " != #??????????????????? | | ??????????????????#"Y"# "%" "#??????????????????? | | ??????????????????#"""### #"%=## ### #???????????? | | ??????????????????#####""%"" "" ""??????????? | | ?????????????????????#"%"! " " ??????????? | | ?????????????????????#" *% #?????????? | | ?????????????????????#" !!=% #?????????? | | ?????????????????????## #?????????? | | ????????????????????? ???????? | | ???????????????????? ????????? | +----------------------------------------------------+ Best States ------------- Heat Dissipation 61 Coolant Potential 65 Energy Generation 18 Energy Capacity 900 Matter Stores 300 Matter Capacity 300 Sight Range 22 Terrain Scan Range 16 Terrain Scan Density 10 Armor Coverage 150 Propulsion Shielding 66 Weapon Shielding 66 Weapon Cycling 15 Evasion (%) 55 Targeting Accuracy 8 Target Analysis 5 Core Analysis 6 Armor Integrity Analysis 30 Recoil Reduction 4 Kinecelleration 40 Offensive Hacking 31 Item Schematics ----------------- Imp. Assault Rifle | -9/Materials | Scanalyzed Gyrokinetic Inverter | -8/Materials | Scanalyzed Mic. Fission Core | -8/Materials | Scanalyzed Imp. Kinecellerator | -8/Materials | Scanalyzed Propulsion Shielding | -8/Materials | Scanalyzed Enh. Gauss Cannon | -8/Materials | Scanalyzed Gravmag System | -7/Factory | Scanalyzed Imp. Propulsion Shielding | -7/Factory | Scanalyzed Adv. Hacking Suite | -6/Factory | Hacked Nuclear Pulse Thruster | -6/Factory | Scanalyzed Adv. Trap Scanner | -6/Factory | Hacked Hyp. Gauss Cannon | -6/Factory | Hacked Adv. Medium Treads | -6/Factory | Hacked Coil Gun | -6/Factory | Hacked Imp. Hacking Suite | -6/Factory | Hacked Imp. Gravmag System | -6/Factory | Scanalyzed Lrn. Missile Launcher | -6/Factory | Scanalyzed Recoil Nullifier | -6/Factory | Hacked Robot Schematics ------------------ O-24 Administrator | -8/Materials | Hacked P-60 Hacker | -7/Factory | Hacked Fabricated ------------ Gravmag System | x2 | -7/Factory | Preloaded A-02 Transporter | x1 | -7/Factory | Preloaded Gravmag System | x2 | -7/Factory P-60 Hacker | x2 | -6/Factory Alien Tech Used ----------------- None Achievements -------------- None Challenges ------------ None Game ------ Seed EnhancedRainbowMount Manual? 0 Play Time 04:52:57 Cumulative 502.7 hours Start 2024.10.09 @ 01:01:43 End 2024.10.11 @ 02:03:36 Sessions 5 Manual Loads 0 Difficulty Rogue Special Mode None Game No. 203 Rogue 203 Adventurer 0 Explorer 0 Win Type - Total 4 Types 0/0/2/2/0/0/0/0/0 Lore% 48 Gallery% 76 Achievement% 66 Wizard Run 0 Options --------- Layout 0 ASCII 0 Keyboard 1 Movement Arrows Keybinds 0 Fullscreen 1 Font 12/Proggy Map View 83x54 Zoom Use 0% Tactical HUD 1 Map Filters NONE Filters NONE Steam 0 RUN: d768252e-468a-49d6-88bc-64bf1cbdd74f